bitfinex/quotes_BTCUSD_20250303
["timestamp","ask_amount","ask_price","bid_price","bid_amount"]
[1741005569821,0.214794,93113.0,93109.0,5e-07]
[1741005570046,0.161099,93110.0,93109.0,5e-07]
[1741005571925,0.485199,93110.0,93109.0,5e-07]
[1741005573033,0.785199,93110.0,93109.0,5e-07]
[1741005574466,0.7855402,93110.0,93109.0,5e-07]
[1741005575228,0.7885402,93110.0,93109.0,5e-07]
[1741005576049,0.4885402,93110.0,93109.0,5e-07]
[1741005577026,0.4855402,93110.0,93109.0,5e-07]
[1741005578788,0.49301678,93110.0,93109.0,5e-07]
[1741005579316,0.33191778,93110.0,93109.0,5e-07]
[1741005579488,0.49301678,93110.0,93109.0,5e-07]
[1741005579688,0.33191778,93110.0,93109.0,0.2083015]
[1741005580051,0.33191778,93110.0,93109.0,0.2847015]
[1741005580301,0.34128714,93110.0,93109.0,0.2847015]
[1741005580515,0.34876646,93110.0,93109.0,0.2847015]
[1741005581757,0.34876646,93110.0,93109.0,0.1236005]
[1741005581961,0.34976646,93110.0,93109.0,0.1236005]
[1741005582160,0.34876646,93110.0,93109.0,0.1236005]
[1741005582516,0.34976646,93110.0,93109.0,0.2847015]
[1741005582718,0.34876646,93110.0,93109.0,0.2847015]
[1741005583710,0.02566646,93110.0,93109.0,0.2847015]
[1741005584087,0.01818714,93110.0,93109.0,0.2847015]
[1741005585070,0.01718714,93110.0,93109.0,0.29924235]
[1741005585270,0.01818714,93110.0,93109.0,0.29924235]
[1741005585571,0.01818714,93110.0,93109.0,0.64924235]
[1741005585572,0.0003412,93110.0,93109.0,0.64924235]
[1741005585795,0.0003412,93119.0,93118.0,0.47562585]
[1741005585995,0.0003412,93119.0,93118.0,0.65292585]
[1741005586363,0.0003412,93119.0,93118.0,0.60292585]
[1741005586732,0.0003412,93119.0,93118.0,0.65192585]
[1741005588305,0.0013412,93119.0,93118.0,0.60192585]
[1741005590203,0.01718412,93119.0,93118.0,0.60192585]
[1741005590761,0.01718412,93119.0,93118.0,0.44284085]
[1741005591064,0.01718412,93119.0,93109.0,5e-07]
[1741005591220,0.161099,93110.0,93109.0,5e-07]
[1741005591609,0.1686307,93110.0,93109.0,5e-07]
[1741005592857,0.1696307,93110.0,93109.0,5e-07]
[1741005594339,0.0085317,93110.0,93109.0,5e-07]
[1741005594679,0.0075317,93110.0,93109.0,0.1611015]
[1741005595012,0.01718412,93119.0,93109.0,5e-07]
[1741005595210,0.161091,93115.0,93110.0,0.161099]
[1741005595449,0.214781,93118.0,93109.0,0.2148015]
[1741005595706,0.00751275,93114.0,93111.0,0.161096]
[1741005595905,0.0003412,93119.0,93109.0,5e-07]
[1741005596136,0.0003412,93119.0,93118.0,0.160085]
[1741005596284,0.0003412,93119.0,93118.0,0.17462585]
[1741005596486,0.0003412,93119.0,93118.0,0.22162585]
[1741005596697,0.0003412,93119.0,93118.0,0.29962585]
[1741005597837,0.0003412,93119.0,93118.0,0.59962585]
[1741005598429,0.0013412,93119.0,93118.0,0.59962585]
[1741005600463,0.0013412,93119.0,93118.0,0.64962585]
[1741005602832,2e-07,93119.0,93118.0,0.69962585]
[1741005603039,0.0003412,93152.0,93131.0,0.60480385]
[1741005603211,2.1e-07,93132.0,93131.0,1.7865887]
[1741005604417,2.1e-07,93132.0,93131.0,1.7365887]
[1741005604630,2.1e-07,93132.0,93131.0,1.7865887]
[1741005604826,2.1e-07,93132.0,93131.0,1.7855887]
[1741005605531,0.00100021,93132.0,93131.0,1.7925887]
[1741005605874,0.00100021,93132.0,93131.0,1.7425887]
[1741005606091,0.00100021,93132.0,93131.0,1.8203887]
[1741005606373,0.00100021,93132.0,93131.0,1.8703887]
[1741005607628,0.00100021,93132.0,93131.0,1.8603887]
[1741005608417,2.1e-07,93132.0,93131.0,1.8603887]
[1741005608624,0.0003412,93152.0,93131.0,1.8603887]
[1741005608625,2e-07,93152.0,93151.0,0.561028]
[1741005608872,1.6e-07,93152.0,93151.0,1.7435537]
[1741005609074,0.002,93197.0,93167.0,0.01454085]
[1741005609275,0.00205998,93197.0,93166.0,0.37804]
[1741005609436,0.160973,93183.0,93175.0,0.3]
[1741005609635,0.00205998,93197.0,93159.0,0.22922685]
[1741005609835,0.00522907,93182.0,93163.0,0.31454085]
[1741005610093,0.00205998,93197.0,93161.0,0.01454085]
[1741005610296,0.160994,93171.0,93165.0,0.161003]
[1741005610495,0.01683578,93178.0,93158.0,0.01072783]
[1741005610719,0.160987,93175.0,93169.0,0.160997]
[1741005610914,0.01683642,93170.0,93153.0,0.3]
[1741005611127,0.01683642,93170.0,93151.0,0.3813]
[1741005611327,0.01683642,93170.0,93153.0,0.3]
[1741005611484,0.214663,93169.0,93151.0,0.0813]
[1741005611690,0.01683642,93170.0,93143.0,0.214722]
[1741005611691,0.161016,93159.0,93143.0,0.214722]
[1741005612039,0.214677,93163.0,93149.0,0.01454085]
[1741005612245,0.214638,93181.0,93160.0,0.161012]
[1741005612418,0.01683935,93156.0,93155.0,0.17556185]
[1741005612619,0.3241,93181.0,93157.0,0.214691]
[1741005612800,0.32415997,93181.0,93153.0,0.01454085]
[1741005613002,0.32415997,93181.0,93162.0,0.214678]
[1741005613207,0.32415997,93181.0,93150.0,0.3]
[1741005613208,0.214638,93180.0,93150.0,0.3]
[1741005613420,0.32415997,93181.0,93153.0,0.214698]
[1741005613758,0.32415997,93181.0,93154.0,0.161023]
[1741005613921,0.32415997,93181.0,93142.0,0.3]
[1741005614114,0.161005,93165.0,93142.0,0.3]
[1741005614453,0.161001,93167.0,93161.0,0.16101]
[1741005614633,0.161006,93165.0,93146.0,0.01454085]
[1741005614846,0.32415997,93181.0,93146.0,0.01454085]
[1741005614847,0.161003,93166.0,93160.0,0.161012]
[1741005615287,0.214658,93172.0,93156.0,0.161019]
[1741005615627,0.214638,93180.0,93148.0,0.01454085]
[1741005615760,0.161012,93161.0,93150.0,0.01454085]
[1741005615960,0.3241,93179.0,93153.0,0.002]
[1741005616306,0.0803,93169.0,93135.0,0.01081828]
[1741005616480,0.0803,93169.0,93156.0,0.002]
[1741005616686,0.161018,93157.0,93156.0,0.002]
[1741005616884,0.00522793,93168.0,93120.0,0.0782]
[1741005617087,0.00513205,93157.0,93120.0,0.0782]
[1741005617270,0.3241,93156.0,93118.0,0.0001704]
[1741005617470,0.161064,93131.0,93118.0,0.0001704]
[1741005617671,0.161064,93131.0,93124.0,0.161074]
[1741005617672,0.161063,93131.0,93124.0,0.161074]
[1741005617870,0.32995403,93130.0,93118.0,0.0001704]
[1741005618070,0.161077,93124.0,93118.0,0.0001704]
[1741005618324,0.32995403,93130.0,93118.0,0.0001704]
[1741005618520,0.00578946,93123.0,93118.0,0.0001704]
[1741005618720,0.3241,93130.0,93118.0,0.0001704]
[1741005618947,0.01684384,93128.0,93127.0,0.16107]
[1741005619267,0.3241,93130.0,93129.0,0.161066]
[1741005619564,0.3241,93130.0,93129.0,0.25310685]
[1741005620199,0.3241,93161.0,93130.0,0.3]
[1741005620400,0.3241,93161.0,93160.0,0.161013]
[1741005621159,0.0003406,93167.0,93166.0,0.161002]
[1741005621358,0.0003406,93167.0,93151.0,0.3]
[1741005621720,0.161009,93163.0,93156.0,0.161019]
[1741005621933,0.00040055,93167.0,93151.0,0.514705]
[1741005622137,0.214682,93161.0,93149.0,0.161032]
[1741005622358,0.01683758,93162.0,93130.0,0.214753]
[1741005622560,0.002,93161.0,93149.0,0.161031]
[1741005622894,0.01683758,93162.0,93132.0,0.01454085]
[1741005623206,0.161027,93152.0,93151.0,0.002]
[1741005623403,0.161071,93127.0,93121.0,0.16108]
[1741005623576,0.0493,93164.0,93149.0,0.004]
[1741005623577,0.3241,93151.0,93149.0,0.004]
[1741005623775,0.16691187,93150.0,93149.0,0.004]
[1741005624099,0.161052,93138.0,93132.0,0.161061]
[1741005624276,0.214743,93135.0,93132.0,0.004]
[1741005624480,0.161059,93133.0,93132.0,0.004]
[1741005624914,0.161059,93133.0,93132.0,0.16512096]
[1741005624915,0.00585598,93133.0,93132.0,0.16512096]
[1741005625075,0.00585598,93133.0,93132.0,0.00405996]
[1741005625274,0.0778,93156.0,93132.0,0.00405996]
[1741005625501,0.01684323,93133.0,93132.0,0.16512096]
[1741005625675,0.161049,93139.0,93134.0,0.161057]
[1741005625910,0.161059,93133.0,93132.0,5.996e-05]
[1741005626297,0.16687896,93133.0,93132.0,5.996e-05]
[1741005626609,0.00581996,93133.0,93132.0,0.16112096]
[1741005626839,0.161048,93140.0,93134.0,0.161056]
[1741005627075,0.214712,93148.0,93133.0,0.161059]
[1741005627257,0.00583076,93139.0,93133.0,0.161059]
[1741005627484,0.161049,93139.0,93133.0,0.161059]
[1741005627642,0.00582917,93138.0,93137.0,0.161053]
[1741005628019,0.161034,93148.0,93132.0,0.00305996]
[1741005628288,0.00584185,93147.0,93132.0,0.00305996]
[1741005628480,0.16687885,93147.0,93132.0,0.00305996]
[1741005628680,0.00584185,93147.0,93146.0,0.161037]
[1741005628883,0.00584185,93147.0,93144.0,0.214719]
[1741005629058,0.01684211,93144.0,93134.0,0.003]
[1741005629259,0.01684211,93144.0,93141.0,0.161046]
[1741005629462,0.00584816,93143.0,93141.0,0.161046]
[1741005629680,0.00584816,93143.0,93142.0,0.161044]
[1741005630088,0.01684211,93144.0,93143.0,0.161042]
[1741005630432,0.01684211,93144.0,93143.0,0.461042]
[1741005630552,0.01684211,93144.0,93143.0,0.47558285]
[1741005631208,0.078,93190.0,93165.0,0.161004]
[1741005631368,0.00586157,93166.0,93165.0,0.161004]
[1741005631565,0.3241,93189.0,93166.0,0.17554285]
[1741005632009,0.01717656,93167.0,93166.0,0.17554285]
[1741005633320,0.01717656,93167.0,93166.0,0.005]
[1741005633594,0.01717656,93167.0,93166.0,0.161002]
[1741005633595,0.02202623,93167.0,93166.0,0.161002]
[1741005633808,0.01717656,93167.0,93166.0,0.166002]
[1741005634358,0.02202623,93167.0,93166.0,0.166002]
[1741005634608,0.01717656,93167.0,93166.0,0.166002]
[1741005635408,0.01717656,93167.0,93166.0,0.18054285]
[1741005635790,0.0003406,93167.0,93166.0,0.56284285]
[1741005636326,0.0003406,93167.0,93166.0,0.56584285]
[1741005636530,0.0003406,93167.0,93166.0,0.55784285]
[1741005636690,0.0003406,93167.0,93166.0,0.56284285]
[1741005637558,0.0003406,93167.0,93166.0,0.66014285]
[1741005638541,0.0003406,93167.0,93166.0,0.65514285]
[1741005638937,0.0013406,93167.0,93166.0,0.61214285]
[1741005639936,0.0013406,93167.0,93166.0,0.168002]
[1741005640143,0.0013406,93167.0,93166.0,0.007]
[1741005640346,0.01817555,93167.0,93166.0,0.007]
[1741005640899,0.02292038,93167.0,93166.0,0.007]
[1741005641139,0.18392138,93167.0,93166.0,0.007]
[1741005641279,0.02292038,93167.0,93166.0,0.007]
[1741005641489,0.02192038,93167.0,93166.0,0.161002]
[1741005641983,0.01717555,93167.0,93166.0,0.168002]
[1741005643429,0.01717555,93167.0,93166.0,0.007]
[1741005643628,0.01717555,93167.0,93166.0,0.168002]
[1741005645284,0.01717555,93167.0,93166.0,0.007]
[1741005645512,0.02192646,93167.0,93166.0,0.007]
[1741005645661,0.02192646,93167.0,93166.0,0.168002]
[1741005645864,0.00509151,93167.0,93166.0,0.168002]
[1741005646086,0.00509151,93167.0,93166.0,0.26144285]
[1741005646423,0.0003406,93167.0,93166.0,0.168002]
[1741005647144,0.00509556,93167.0,93166.0,0.161002]
[1741005647344,0.0003406,93167.0,93166.0,0.161002]
[1741005647566,0.00509509,93167.0,93166.0,0.168002]
[1741005647792,0.0003406,93167.0,93166.0,0.168002]
[1741005648002,0.00509509,93167.0,93166.0,0.168002]
[1741005648199,0.0003406,93167.0,93166.0,0.18254285]
[1741005649801,0.0003406,93167.0,93166.0,0.48254285]
[1741005659094,0.17817709,93167.0,93166.0,0.007]
[1741005659290,0.01717609,93167.0,93166.0,0.007]
[1741005659568,0.02193817,93167.0,93166.0,0.007]
[1741005659916,0.01717609,93167.0,93166.0,0.007]
[1741005660323,0.02193297,93167.0,93166.0,0.007]
[1741005660523,0.18293397,93167.0,93166.0,0.007]
[1741005661350,0.02193297,93167.0,93166.0,0.007]
[1741005661557,0.02193297,93167.0,93166.0,0.168002]
[1741005661760,0.02193297,93167.0,93166.0,0.18254285]
[1741005661933,0.02193297,93167.0,93166.0,0.48254285]
[1741005661934,0.01717609,93167.0,93166.0,0.48254285]
[1741005662283,0.01717609,93167.0,93166.0,0.56494285]
[1741005663436,0.0003406,93167.0,93166.0,0.56494285]
[1741005663712,0.0003406,93167.0,93166.0,0.71124285]
[1741005664947,0.0003406,93167.0,93166.0,0.70424285]
[1741005665396,0.0003406,93167.0,93166.0,0.71124285]
[1741005665609,0.0003406,93167.0,93166.0,0.70424285]
[1741005665735,6e-07,93167.0,93166.0,1.03134285]
[1741005665942,6e-07,93167.0,93166.0,1.03834285]
[1741005666182,0.0003412,93204.0,93196.0,0.460951]
[1741005666380,0.0003412,93204.0,93196.0,0.47549185]
[1741005666587,0.0003412,93204.0,93196.0,0.52489185]
[1741005667305,0.0003412,93204.0,93196.0,0.57489185]
[1741005668404,0.0023406,93197.0,93196.0,0.58281148]
[1741005668833,1e-06,93208.0,93207.0,0.210932]
[1741005669025,1e-06,93213.0,93212.0,0.560923]
[1741005669221,1e-06,93219.0,93218.0,0.560913]
[1741005669429,1e-06,93219.0,93218.0,1.7392587]
[1741005669626,1e-06,93219.0,93218.0,1.77639722]
[1741005669833,1e-06,93219.0,93218.0,1.74510624]
[1741005670228,1e-06,93219.0,93218.0,1.6228854]
[1741005670456,1e-06,93219.0,93218.0,1.6499654]
[1741005670610,1e-06,93219.0,93218.0,1.6999654]
[1741005671011,1e-06,93219.0,93218.0,1.70990616]
[1741005671663,1e-06,93219.0,93218.0,1.762007]
[1741005671910,1e-06,93219.0,93218.0,1.755007]
[1741005672249,1e-06,93219.0,93218.0,1.75206624]
[1741005672882,0.00611579,93232.0,93229.0,0.34510084]
[1741005673082,0.0018534,93240.0,93239.0,0.47541685]
[1741005674146,0.0018534,93240.0,93239.0,0.460876]
[1741005675250,0.0018534,93240.0,93239.0,0.3]
[1741005675974,0.0018534,93240.0,93239.0,0.467876]
[1741005676178,0.00758142,93240.0,93239.0,0.467876]
[1741005676333,0.0018534,93240.0,93239.0,0.467876]
[1741005676683,0.0018534,93240.0,93239.0,0.48241685]
[1741005678305,0.0018534,93240.0,93239.0,0.53101685]
[1741005680019,0.0018534,93240.0,93239.0,0.53135705]
[1741005680539,0.0020235,93240.0,93239.0,0.53135705]
[1741005681463,0.0020235,93240.0,93239.0,0.48275705]
[1741005686363,0.00242286,93240.0,93239.0,0.0073402]
[1741005686890,0.00242286,93240.0,93239.0,0.1682162]
[1741005687114,0.00242286,93240.0,93239.0,0.0073402]
[1741005687655,0.00242286,93240.0,93239.0,0.1682162]
[1741005687859,0.00953775,93240.0,93239.0,0.1682162]
[1741005688057,0.00242286,93240.0,93239.0,0.1682162]
[1741005689848,0.00955203,93240.0,93239.0,0.1682162]
[1741005690048,0.00242286,93240.0,93239.0,0.18275705]
[1741005691203,0.00242286,93240.0,93239.0,0.48275705]
[1741005691407,0.00242286,93240.0,93239.0,0.4682162]
[1741005692837,0.00242286,93240.0,93239.0,0.0073402]
[1741005693305,0.00955352,93240.0,93239.0,0.0073402]
[1741005694219,0.25382768,93240.0,93239.0,0.0073402]
[1741005694695,0.27065274,93240.0,93239.0,0.0073402]
[1741005695114,0.27065274,93240.0,93239.0,0.0003402]
[1741005695429,0.27065274,93240.0,93239.0,0.0023402]
[1741005695805,0.25382768,93240.0,93239.0,0.0023402]
[1741005696302,0.25382768,93240.0,93239.0,0.0003402]
[1741005696717,0.17042852,93240.0,93239.0,0.0003402]
[1741005696924,0.17532768,93240.0,93239.0,0.0003402]
[1741005697103,0.17532768,93240.0,93239.0,0.0013402]
[1741005697855,0.17532768,93240.0,93239.0,0.1622162]
[1741005697856,0.00955352,93240.0,93239.0,0.1622162]
[1741005698416,0.00242286,93240.0,93239.0,0.1622162]
[1741005699079,0.0192473,93240.0,93239.0,0.1622162]
[1741005699242,0.0192473,93240.0,93239.0,0.1612162]
[1741005699789,0.0192473,93240.0,93239.0,0.1642162]
[1741005700960,0.0192473,93240.0,93239.0,0.0033402]
[1741005701283,0.19213493,93240.0,93239.0,0.0033402]
[1741005701493,0.02636077,93240.0,93239.0,0.0033402]
[1741005701752,0.03125993,93240.0,93239.0,0.1642162]
[1741005701931,0.02636077,93240.0,93239.0,0.1642162]
[1741005702276,0.0192473,93240.0,93239.0,0.1642162]
[1741005703961,0.0192473,93240.0,93239.0,0.17875705]
[1741005704289,0.00242286,93240.0,93239.0,0.47875705]
[1741005705429,0.00242286,93240.0,93239.0,0.47575705]
[1741005705817,0.00242286,93240.0,93239.0,0.48275705]
[1741005707065,0.00506461,93247.0,93240.0,0.31454085]
[1741005707287,0.00518433,93247.0,93246.0,0.160864]
[1741005708387,0.00518433,93247.0,93246.0,0.00150122]
[1741005708563,0.00518433,93247.0,93246.0,0.160864]
[1741005708771,0.01229895,93247.0,93246.0,0.460864]
[1741005708970,0.02200688,93247.0,93246.0,0.460864]
[1741005709887,0.02200688,93247.0,93246.0,0.467864]
[1741005710705,0.02200688,93247.0,93246.0,0.48240485]
[1741005711281,0.02200688,93247.0,93246.0,0.467864]
[1741005711509,0.02200688,93247.0,93246.0,0.307]
[1741005711845,0.002,93250.0,93246.0,0.307]
[1741005712049,0.002,93250.0,93247.0,0.3]
[1741005712186,0.162859,93250.0,93247.0,0.3]
[1741005712393,0.00489916,93248.0,93247.0,0.3]
[1741005712925,0.00489916,93248.0,93247.0,0.160863]
[1741005713091,0.00713297,93248.0,93247.0,0.160863]
[1741005713293,0.002,93250.0,93247.0,0.160863]
[1741005713651,0.002,93250.0,93246.0,0.306]
[1741005714030,0.002,93250.0,93249.0,0.160859]
[1741005714234,0.002,93250.0,93247.0,0.006]
[1741005714437,0.002,93250.0,93249.0,0.160859]
[1741005715501,0.160875,93240.0,93239.0,0.0003402]
[1741005715907,0.16577416,93240.0,93239.0,0.0003402]
[1741005717015,0.16577416,93240.0,93239.0,0.0073402]
[1741005717223,0.00489916,93240.0,93239.0,0.0003402]
[1741005717429,0.00489916,93241.0,93239.0,0.0003402]
[1741005717634,0.00489916,93240.0,93239.0,0.0003402]
[1741005717833,0.16577416,93240.0,93239.0,0.0003402]
[1741005718765,0.16577416,93240.0,93239.0,0.0063402]
[1741005718941,0.1825997,93240.0,93239.0,0.0063402]
[1741005719801,0.01682554,93240.0,93239.0,0.1672162]
[1741005720684,0.0217247,93240.0,93239.0,0.0063402]
[1741005720909,0.0217247,93240.0,93239.0,0.1672162]
[1741005720910,0.01682554,93240.0,93239.0,0.1672162]
[1741005721113,0.02215801,93240.0,93239.0,0.1672162]
[1741005721290,0.01682554,93240.0,93239.0,0.0063402]
[1741005721819,0.18303301,93240.0,93239.0,0.0063402]
[1741005722045,0.02705717,93240.0,93239.0,0.0063402]
[1741005722245,0.02705717,93240.0,93239.0,0.1672162]
[1741005722449,0.02215801,93240.0,93239.0,0.1672162]
[1741005722812,0.01682554,93240.0,93239.0,0.1672162]
[1741005723235,0.01682554,93240.0,93239.0,0.18175705]
[1741005724813,0.01682554,93240.0,93239.0,0.17575705]
[1741005725253,0.01682554,93240.0,93239.0,0.18275705]
[1741005725833,0.0001701,93248.0,93247.0,0.160863]
[1741005727094,0.0001701,93248.0,93247.0,0.17540385]
[1741005728168,0.0001701,93248.0,93247.0,0.18140385]
[1741005729089,0.01699284,93248.0,93247.0,0.18140385]
[1741005732836,0.01699284,93248.0,93247.0,0.18740385]
[1741005733434,0.01699284,93248.0,93247.0,0.48740385]
[1741005733640,0.0001701,93248.0,93247.0,1.5740887]
[1741005734036,1e-07,93250.0,93249.0,0.160859]
[1741005734251,1e-07,93250.0,93249.0,0.4769007]
[1741005734504,1e-07,93250.0,93249.0,0.64340069]
[1741005734725,0.0003601,93259.0,93258.0,0.460844]
[1741005734935,0.0003601,93259.0,93258.0,1.6387897]
[1741005736711,0.0003601,93259.0,93258.0,1.7220897]
[1741005737322,3e-07,93261.0,93260.0,0.50964]
[1741005737523,3e-07,93261.0,93260.0,0.97968169]
[1741005737703,3e-07,93261.0,93260.0,1.02968169]
[1741005738501,3e-07,93261.0,93260.0,1.03963801]
[1741005738824,3.2e-07,93267.0,93266.0,0.59687169]
[1741005739028,3.2e-07,93271.0,93270.0,0.50592384]
[1741005739213,3.2e-07,93271.0,93270.0,1.68354954]
[1741005739462,3.2e-07,93271.0,93270.0,1.73354954]
[1741005740175,3.2e-07,93271.0,93270.0,1.74350586]
[1741005740588,3.2e-07,93271.0,93270.0,1.77479684]
[1741005740804,3.2e-07,93271.0,93270.0,1.78583268]
[1741005741365,3.2e-07,93271.0,93270.0,2.0886417]
[1741005741948,3.2e-07,93271.0,93270.0,2.0956417]
[1741005742469,3.2e-07,93271.0,93270.0,2.0886417]
[1741005742657,3.2e-07,93271.0,93270.0,2.0956417]
[1741005743070,3.2e-07,93271.0,93270.0,2.16244538]
[1741005743818,3.2e-07,93271.0,93270.0,2.19373636]
[1741005744024,3.2e-07,93271.0,93270.0,2.16244538]
[1741005744155,3.2e-07,93271.0,93270.0,2.20175158]
[1741005744360,3.2e-07,93271.0,93270.0,2.18775158]
[1741005744756,3.2e-07,93271.0,93270.0,2.1634606]
[1741005745903,3.2e-07,93271.0,93270.0,2.19475158]
[1741005746237,3.2e-07,93271.0,93270.0,2.17337676]
[1741005746412,0.01443511,93279.0,93278.0,0.47534985]
[1741005746712,0.01455468,93279.0,93278.0,0.80244985]
[1741005747708,0.01455468,93279.0,93278.0,0.80944985]
[1741005748577,0.0145013,93279.0,93278.0,0.80944985]
[1741005749118,3e-07,93279.0,93278.0,0.80944985]
[1741005749519,3e-07,93279.0,93278.0,0.85455069]
[1741005749773,3e-07,93279.0,93278.0,0.90455069]
[1741005750277,3e-07,93279.0,93278.0,0.85944985]
[1741005750788,3e-07,93279.0,93278.0,0.80944985]
[1741005751004,3e-07,93279.0,93278.0,0.83078665]
[1741005751159,3e-07,93279.0,93278.0,0.80944985]
[1741005751377,0.0001706,93279.0,93278.0,0.794909]
[1741005751544,0.0001706,93279.0,93278.0,0.467809]
[1741005751943,0.0001706,93279.0,93278.0,0.167809]
[1741005752505,0.0001706,93279.0,93278.0,0.1693096]
[1741005753403,0.0001706,93279.0,93278.0,0.18234985]
[1741005753703,0.0001706,93279.0,93278.0,0.17534985]
[1741005753934,0.0001706,93279.0,93278.0,0.18234985]
[1741005754737,0.0001706,93279.0,93278.0,0.17534985]
[1741005755280,0.0001706,93279.0,93278.0,0.17685035]
[1741005755620,6e-07,93279.0,93278.0,0.94205035]
[1741005755992,6e-07,93279.0,93278.0,0.94054985]
[1741005757003,6e-07,93279.0,93278.0,0.88354985]
[1741005757376,6e-07,93279.0,93278.0,0.89054985]
[1741005757579,6e-07,93279.0,93278.0,0.88612985]
[1741005759731,6e-07,93279.0,93278.0,0.80944985]
[1741005762102,6e-07,93279.0,93278.0,0.85944985]
[1741005763101,6e-07,93279.0,93278.0,0.86939869]
[1741005763589,6e-07,93279.0,93278.0,0.81973929]
[1741005766328,6e-07,93279.0,93278.0,0.89649929]
[1741005768326,6e-07,93279.0,93278.0,0.90453507]
[1741005768490,0.002,93292.0,93281.0,0.460804]
[1741005768706,0.002,93292.0,93281.0,0.47534485]
[1741005769083,0.002,93292.0,93281.0,1.5620297]
[1741005769278,1e-06,93282.0,93281.0,1.5620297]
[1741005770260,1e-06,93282.0,93281.0,1.57197854]
[1741005770481,1e-06,93282.0,93281.0,1.57897854]
[1741005770806,1e-06,93282.0,93281.0,1.90607854]
[1741005771233,1e-06,93282.0,93281.0,1.89907854]
[1741005771431,0.3241,93334.0,93283.0,0.083]
[1741005771606,0.00011954,93313.0,93312.0,0.160751]
[1741005771812,0.00011954,93313.0,93312.0,0.17529185]
[1741005772077,0.00011954,93313.0,93312.0,0.01454085]
[1741005772222,0.00011954,93313.0,93312.0,0.17529185]
[1741005772424,0.00541483,93313.0,93312.0,0.17529185]
[1741005772621,0.00011954,93313.0,93312.0,0.17529185]
[1741005773165,0.00011954,93313.0,93312.0,0.01454085]
[1741005773798,0.00011954,93313.0,93312.0,0.17529185]
[1741005773799,0.00541859,93313.0,93312.0,0.17529185]
[1741005773957,0.00011954,93313.0,93312.0,0.01454085]
[1741005774161,0.00541859,93313.0,93312.0,0.01454085]
[1741005774368,0.00011954,93313.0,93312.0,0.01454085]
[1741005774586,0.00011954,93313.0,93312.0,0.01954085]
[1741005774792,0.00541859,93313.0,93312.0,0.01954085]
[1741005774958,0.16086854,93313.0,93312.0,0.01954085]
[1741005775158,0.00541859,93313.0,93312.0,0.01954085]
[1741005776734,0.00558889,93313.0,93312.0,0.01954085]
[1741005776940,0.16633789,93313.0,93312.0,0.01954085]
[1741005777060,0.16633789,93313.0,93312.0,0.005]
[1741005777487,0.00558889,93313.0,93312.0,0.005]
[1741005777742,0.00558889,93313.0,93312.0,0.18029185]
[1741005777954,0.00028984,93313.0,93312.0,0.18029185]
[1741005778167,0.16103884,93313.0,93312.0,0.01954085]
[1741005778479,0.1663426,93313.0,93312.0,0.01954085]
[1741005778694,0.0055936,93313.0,93312.0,0.01954085]
[1741005778895,0.1663426,93313.0,93312.0,0.01954085]
[1741005779030,0.18315589,93313.0,93312.0,0.01954085]
[1741005779441,0.18315589,93313.0,93312.0,0.005]
[1741005779840,0.02240689,93313.0,93293.0,0.160783]
[1741005780182,0.160768,93302.0,93292.0,0.514379]
[1741005780471,0.160763,93305.0,93299.0,0.01454085]
[1741005780708,0.01710313,93313.0,93293.0,0.01454085]
[1741005780709,0.00528955,93301.0,93293.0,0.01454085]
[1741005780891,0.0785,93299.0,93281.0,0.07652]
[1741005781231,0.00528955,93298.0,93297.0,0.17531685]
[1741005781652,0.01681452,93300.0,93299.0,0.160773]
[1741005781886,0.01681452,93300.0,93299.0,0.17531385]
[1741005782543,0.01681452,93300.0,93295.0,0.214372]
[1741005782544,0.214364,93299.0,93293.0,0.002]
[1741005782716,0.160782,93294.0,93293.0,0.002]
[1741005783126,0.16606271,93294.0,93293.0,0.002]
[1741005783355,0.17661003,93294.0,93293.0,0.002]
[1741005783925,0.160807,93279.0,93265.0,0.39483788]
[1741005784126,0.160807,93279.0,93265.0,0.09483788]
[1741005784328,0.16608704,93279.0,93265.0,0.09483788]
[1741005784653,0.54060597,93279.0,93265.0,0.09483788]
[1741005785916,0.52378704,93279.0,93265.0,0.09483788]
[1741005786131,0.52378704,93279.0,93250.0,0.07664]
[1741005786625,0.52378704,93279.0,93258.0,0.01488145]
[1741005786970,0.52378704,93279.0,93278.0,0.0053406]
[1741005787583,0.52378704,93279.0,93278.0,0.0073406]
[1741005787782,0.52378704,93279.0,93278.0,0.0003406]
[1741005788377,0.49018704,93279.0,93278.0,0.0003406]
[1741005788632,0.32938004,93279.0,93278.0,0.0003406]
[1741005788874,0.02209864,93279.0,93278.0,0.0003406]
[1741005789150,0.02209864,93279.0,93278.0,0.17569045]
[1741005789354,0.02209864,93279.0,93278.0,0.18625198]
[1741005789529,0.160767,93303.0,93295.0,0.160779]
[1741005789736,0.01681568,93293.0,93292.0,0.17532585]
[1741005790971,0.01681568,93293.0,93292.0,0.47532585]
[1741005791171,0.00011954,93307.0,93306.0,0.160761]
[1741005791376,0.00539495,93307.0,93306.0,0.17530185]
[1741005791723,0.02220785,93307.0,93306.0,0.01454085]
[1741005791942,0.02220785,93307.0,93306.0,0.17530185]
[1741005792405,0.01693244,93307.0,93306.0,0.17530185]
[1741005793018,0.01693244,93307.0,93306.0,0.25120185]
[1741005793228,0.01693244,93307.0,93306.0,0.55120185]
[1741005793572,0.01693244,93307.0,93306.0,0.55620185]
[1741005794020,0.01693244,93307.0,93306.0,0.55120185]
[1741005794181,0.01693244,93307.0,93306.0,0.55620185]
[1741005794586,0.01693244,93307.0,93306.0,0.55120185]
[1741005794834,0.00011954,93307.0,93306.0,0.55820185]
[1741005797057,0.00011954,93307.0,93306.0,0.57107688]
[1741005797485,0.00011954,93307.0,93306.0,0.57807688]
[1741005797676,0.00011954,93307.0,93306.0,0.57107688]
[1741005798085,0.00011954,93307.0,93306.0,0.55820185]
[1741005800956,0.00011954,93307.0,93306.0,0.50820185]
[1741005803530,0.00011954,93307.0,93306.0,0.58488185]
[1741005803707,0.00011954,93307.0,93306.0,0.5994227]
[1741005807394,0.00011954,93307.0,93306.0,0.5235227]
[1741005807812,0.00011954,93307.0,93306.0,0.4468427]
[1741005808013,0.00011954,93307.0,93306.0,0.5236027]
[1741005809326,0.00011954,93307.0,93306.0,0.4468427]
[1741005809933,0.00011954,93307.0,93306.0,0.1468427]
[1741005811315,0.00011954,93307.0,93306.0,0.007]
[1741005811530,0.16087854,93307.0,93306.0,0.007]
[1741005811748,0.00541548,93307.0,93306.0,0.0073404]
[1741005812089,0.16617448,93307.0,93306.0,0.0073404]
[1741005812293,0.00541548,93307.0,93306.0,0.0003404]
[1741005812545,0.00541548,93307.0,93306.0,0.1661014]
[1741005812799,0.00011954,93307.0,93306.0,0.1661014]